bitfinex-derivatives/quotes_SOLF0:USTF0_20250606
["timestamp","ask_amount","ask_price","bid_price","bid_amount"]
[1749196763690,7.81522334,147.3,147.29,6.7862]
[1749196763883,7.81537369,147.3,147.29,6.7862]
[1749196764586,3.09517101,147.3,147.29,6.7862]
[1749196764787,0.05221897,147.31,147.29,6.7862]
[1749196764988,3.14738998,147.31,147.3,6.7858]
[1749196765188,7.86616176,147.31,147.3,6.7858]
[1749196765389,7.86616176,147.31,147.28,0.04692842]
[1749196765590,3.14738998,147.31,147.28,0.04692842]
[1749196766491,3.14738998,147.31,147.3,6.7858]
[1749196766692,7.8648778,147.31,147.3,6.7858]
[1749196766890,7.8648778,147.31,147.29,6.786]
[1749196767190,3.14738998,147.31,147.29,6.786]
[1749196768195,4.71734082,147.3,147.29,6.786]
[1749196768494,3.14738998,147.31,147.29,6.786]
[1749196772395,9.93268998,147.31,147.29,6.786]
[1749196772592,3.09517101,147.3,147.29,6.786]
[1749196774194,0.05221897,147.31,147.3,6.7858]
[1749196774395,0.05221897,147.31,147.3,9.88097101]
[1749196775096,33.74,147.35,147.3,9.88097101]
[1749196775097,3.09517101,147.36,147.35,6.7835]
[1749196775400,7.81675006,147.36,147.35,6.7835]
[1749196775800,7.815912,147.36,147.35,6.7835]
[1749196776000,7.81599378,147.36,147.35,6.7835]
[1749196776196,7.81537262,147.36,147.35,6.7835]
[1749196776396,7.81537676,147.36,147.34,6.82932018]
[1749196776596,7.81537676,147.35,147.34,0.04562018]
[1749196777100,3.09517101,147.35,147.34,0.04562018]
[1749196777802,14.60090752,147.35,147.34,0.04562018]
[1749196778103,9.87867101,147.35,147.34,0.04562018]
[1749196778297,14.60085167,147.35,147.34,0.04562018]
[1749196778498,14.60086928,147.35,147.34,0.04562018]
[1749196779201,14.60103319,147.35,147.34,0.04562018]
[1749196779402,14.61743833,147.35,147.34,0.04562018]
[1749196780601,14.61613147,147.35,147.34,0.04562018]
[1749196780806,9.87867101,147.35,147.34,0.04562018]
[1749196781297,14.62820945,147.35,147.34,0.04562018]
[1749196781497,14.62857912,147.35,147.34,0.04562018]
[1749196781807,9.87867101,147.35,147.34,0.04562018]
[1749196782008,14.6286773,147.35,147.34,0.04562018]
[1749196782308,9.87867101,147.35,147.34,0.04562018]
[1749196782508,14.62851646,147.35,147.34,0.04562018]
[1749196782808,14.62885497,147.35,147.34,0.04562018]
[1749196783304,9.87867101,147.35,147.34,0.04562018]
[1749196783698,14.6297947,147.35,147.34,0.04562018]
[1749196784609,14.62349484,147.35,147.34,0.04562018]
[1749196784810,9.87867101,147.35,147.34,0.04562018]
[1749196785211,14.62477093,147.35,147.34,0.04562018]
[1749196785711,14.62606178,147.35,147.34,0.04562018]
[1749196786310,9.87867101,147.35,147.34,0.04562018]
[1749196786611,14.62857857,147.35,147.34,0.04562018]
[1749196786801,14.62841009,147.35,147.34,0.04562018]
[1749196787005,9.87867101,147.35,147.34,0.04562018]
[1749196787203,14.62986057,147.35,147.34,0.04562018]
[1749196787412,4.75076456,147.35,147.34,0.04562018]
[1749196787607,3.14030165,147.37,147.34,0.04562018]
[1749196788012,3.14030165,147.37,147.35,6.7834]
[1749196788208,4.75199692,147.36,147.35,6.7834]
[1749196788513,4.7521083,147.36,147.35,6.7834]
[1749196788702,0.04513064,147.37,147.36,6.783]
[1749196792807,3.14030165,147.37,147.36,6.783]
[1749196793115,7.90522729,147.37,147.36,6.783]
[1749196793317,7.90270947,147.37,147.36,6.783]
[1749196794413,7.90239587,147.37,147.36,6.783]
[1749196794614,7.9023662,147.37,147.36,6.783]
[1749196794919,7.91867386,147.37,147.36,6.783]
[1749196795120,7.91870162,147.37,147.36,6.783]
[1749196795621,7.91944637,147.37,147.36,6.783]
[1749196795914,3.14030165,147.37,147.36,6.783]
[1749196796118,7.91538837,147.37,147.36,6.783]
[1749196796415,3.14030165,147.37,147.36,6.783]
[1749196796612,0.04513064,147.37,147.36,6.783]
[1749196806725,0.04513064,147.37,147.34,0.04562018]
[1749196808230,0.04513064,147.37,147.35,6.7832]
[1749196809421,0.04513064,147.37,147.36,6.783]
[1749196809930,3.064e-05,147.37,147.36,6.783]
[1749196816339,3.064e-05,147.37,147.36,40.443]
[1749196820042,6.31423705,147.48,147.36,40.443]
[1749196820043,39.97423705,147.49,147.44,6.7793]
[1749196820249,10.25012088,147.48,147.44,6.7793]
[1749196820540,6.7784,147.47,147.44,6.7793]
[1749196820733,4.81907906,147.46,147.44,6.7793]
[1749196820936,6.7784,147.47,147.44,6.7793]
[1749196821133,11.60051129,147.46,147.44,0.0454838]
[1749196821337,4.82210006,147.45,147.44,0.0454838]
[1749196821743,6.7786,147.46,147.44,0.0454838]
[1749196822242,6.82903461,147.47,147.44,6.8246838]
[1749196822435,4.82382887,147.46,147.44,6.8246838]
[1749196822641,6.82903461,147.47,147.44,6.8246838]
[1749196823543,6.82903461,147.47,147.45,6.7789]
[1749196823744,6.7784,147.46,147.44,0.0454838]
[1749196823940,0.05083461,147.47,147.44,0.0454838]
[1749196824246,6.7787,147.46,147.44,0.0454838]
[1749196825041,6.82913461,147.47,147.44,0.0454838]
[1749196825343,0.05083461,147.47,147.44,0.0454838]
[1749196825747,0.05083461,147.47,147.45,6.7786]
[1749196826249,6.82883461,147.47,147.45,6.7786]
[1749196827349,0.05083461,147.47,147.44,6.8245838]
[1749196827549,4.84545575,147.46,147.44,0.0454838]
[1749196827750,0.05083461,147.47,147.44,0.0454838]
[1749196827946,6.82903461,147.47,147.45,6.7786]
[1749196828449,0.05083461,147.47,147.45,6.7786]
[1749196829248,6.82883461,147.47,147.45,6.7786]
[1749196829448,0.05083461,147.47,147.46,6.7784]
[1749196829648,4.90311297,147.47,147.46,6.7784]
[1749196829849,0.05083461,147.47,147.46,6.7784]
[1749196830054,4.90394149,147.47,147.46,6.7784]
[1749196830447,0.05083461,147.47,147.46,6.7784]
[1749196830647,4.90394089,147.47,147.46,6.7784]
[1749196831149,11.67641622,147.47,147.45,6.7786]
[1749196831453,6.82893461,147.47,147.45,6.7786]
[1749196832650,0.05083461,147.47,147.45,6.7786]
[1749196832952,0.05083461,147.47,147.44,0.0454838]
[1749196833954,6.82903461,147.47,147.45,6.7787]
[1749196836056,0.05083461,147.47,147.44,0.0454838]
[1749196836253,38.49995853,147.46,147.35,80.07704431]
[1749196836554,14.66721877,147.45,147.34,33.64]
[1749196836757,6.7819,147.39,147.36,6.7827]
[1749196836956,33.64,147.41,147.36,6.7827]
[1749196837157,6.782,147.39,147.36,6.7827]
[1749196837357,6.83001311,147.39,147.36,6.82904748]
[1749196837553,0.04801311,147.39,147.37,6.7822]
[1749196837752,0.04801311,147.39,147.36,0.04634748]
[1749196838759,0.04801311,147.39,147.38,6.7821]
[1749196845454,0.04801311,147.39,147.36,0.04634748]
[1749196845658,4.839965,147.38,147.36,0.04634748]
[1749196845862,0.04801311,147.39,147.36,0.04634748]
[1749196846062,6.7823,147.38,147.36,0.04634748]
[1749196849363,6.82991311,147.39,147.36,0.04634748]
[1749196849564,4.83745664,147.38,147.36,6.82924748]
[1749196849866,6.7821,147.38,147.36,6.82924748]
[1749196851167,6.7821,147.38,147.36,0.04634748]
[1749196851667,6.7825,147.37,147.36,0.04634748]
[1749196852867,6.7823,147.38,147.36,0.04634748]
[1749196853366,6.7825,147.37,147.36,0.04634748]
[1749196854768,6.7822,147.38,147.36,0.04634748]
[1749196854971,0.04801311,147.39,147.36,0.04634748]
[1749196855468,6.7825,147.37,147.36,0.04634748]
[1749196860769,11.58989781,147.37,147.36,0.04634748]
[1749196861073,6.7825,147.37,147.36,0.04634748]
[1749196862270,11.58937749,147.37,147.36,0.04634748]
[1749196862471,6.7825,147.37,147.36,0.04634748]
[1749196862667,6.7844,147.33,147.28,33.64]
[1749196862967,5.46468924,147.39,147.28,33.64]
[1749196862968,33.64,147.35,147.28,6.7867]
[1749196863172,6.7856,147.31,147.25,38.0475]
[1749196863373,35.9556,147.34,147.25,38.0475]
[1749196863675,0.04683452,147.31,147.28,0.04796278]
[1749196864167,0.04683452,147.31,147.3,6.7858]
[1749196877287,4.88032221,147.31,147.28,0.04796278]
[1749196877784,11.66602221,147.31,147.28,6.83436278]
[1749196879588,11.66602221,147.31,147.29,6.7862]
[1749196879886,6.7858,147.3,147.28,0.04796278]
[1749196880092,33.70683452,147.31,147.29,6.786]
[1749196880291,4.83348769,147.3,147.29,6.786]
[1749196885591,4.83348769,147.3,147.28,0.04796278]
[1749196885792,4.83348769,147.3,147.2,48.57449366]
[1749196886093,4.83348769,147.25,147.24,6.7882]
[1749196887286,4.83348769,147.25,147.23,0.04322284]
[1749196888598,6.7885,147.24,147.23,0.04322284]
[1749196889904,4.83348769,147.25,147.23,0.04322284]
[1749196891406,4.83348769,147.25,147.24,6.7885]
[1749196891604,4.83348769,147.25,147.23,0.04322284]
[1749196892105,4.83348769,147.25,147.23,6.83202284]
[1749196893802,4.83348769,147.25,147.24,6.7885]
[1749196896808,4.83348769,147.25,147.23,6.83202284]
[1749196898812,2.32072551,147.26,147.23,0.04322284]
[1749196899110,4.8818132,147.26,147.23,0.04322284]
[1749196899504,4.8818132,147.26,147.24,6.7883]
[1749196899704,4.8818132,147.26,147.23,0.04322284]
[1749196899905,0.04832551,147.26,147.23,0.04322284]
[1749196900110,0.04832551,147.26,147.25,6.7881]
[1749196902716,0.04832551,147.26,147.24,6.7883]
[1749196905016,6.83592551,147.26,147.24,6.7883]
[1749196906713,0.04832551,147.26,147.24,6.7883]
[1749196907419,6.83592551,147.26,147.24,6.7883]
[1749196910114,6.83592551,147.26,147.23,6.83202284]
[1749196916024,6.83592551,147.26,147.24,6.7885]
[1749196917219,4.83348769,147.25,147.23,0.04322284]
[1749196917622,6.7885,147.24,147.23,0.04322284]
[1749196920730,11.48865529,147.24,147.23,0.04322284]
[1749196920925,6.7885,147.24,147.23,0.04322284]
[1749196923834,11.48788838,147.24,147.23,0.04322284]
[1749196924027,6.7885,147.24,147.23,0.04322284]
[1749196924834,11.48867483,147.24,147.23,0.04322284]
[1749196925028,6.7885,147.24,147.23,0.04322284]
[1749196926432,11.4864876,147.24,147.23,0.04322284]
[1749196926632,6.7885,147.24,147.23,0.04322284]
[1749196927232,11.48684006,147.24,147.23,0.04322284]
[1749196927426,6.7885,147.24,147.23,0.04322284]
[1749196927629,11.4865768,147.24,147.23,0.04322284]
[1749196928834,11.49091524,147.24,147.23,0.04322284]
[1749196929037,6.7885,147.24,147.23,0.04322284]
[1749196929235,11.49079354,147.24,147.23,0.04322284]
[1749196930533,6.7885,147.24,147.23,0.04322284]
[1749196931037,4.70781447,147.24,147.23,0.04322284]
[1749196931233,0.04832551,147.26,147.23,0.04322284]
[1749196931433,4.70911939,147.25,147.23,0.04322284]
[1749196931734,0.04832551,147.26,147.25,6.7881]
[1749196931936,4.75798471,147.26,147.25,6.7881]
[1749196932136,4.75821484,147.26,147.25,6.7881]
[1749196932637,4.7584495,147.26,147.25,6.7881]
[1749196932938,4.7583067,147.26,147.25,6.7881]
[1749196933236,4.75821869,147.26,147.25,6.7881]
[1749196933739,0.04832551,147.26,147.25,6.7881]
[1749196933933,4.75838437,147.26,147.25,6.7881]
[1749196934333,0.04832551,147.26,147.25,6.7881]
[1749196934539,4.75939501,147.26,147.25,6.7881]
[1749196935238,4.7593136,147.26,147.25,6.7881]
[1749196935942,4.75959954,147.26,147.25,6.7881]
[1749196936135,0.04832551,147.26,147.25,6.7881]
[1749196936739,4.75971181,147.26,147.25,6.7881]
[1749196937438,4.75982788,147.26,147.25,6.7881]
[1749196937638,0.04832551,147.26,147.25,6.7881]
[1749196937837,4.76007337,147.26,147.25,6.7881]
[1749196938044,0.04832551,147.26,147.25,6.7881]
[1749196939444,4.75967571,147.26,147.25,6.7881]
[1749196939645,4.75967964,147.26,147.25,6.7881]
[1749196939846,4.75939175,147.26,147.25,6.7881]
[1749196940547,9.59287944,147.26,147.23,0.04322284]
[1749196940745,4.70947635,147.25,147.23,0.04322284]
[1749196940945,11.49797635,147.24,147.23,0.04322284]
[1749196941747,11.49800653,147.24,147.23,0.04322284]
[1749196943254,6.7885,147.24,147.23,0.04322284]
[1749196943644,11.49955762,147.24,147.23,0.04322284]
[1749196944646,6.7885,147.24,147.23,0.04322284]
[1749196944851,11.49897653,147.24,147.23,0.04322284]
[1749196945650,11.49924496,147.24,147.23,0.04322284]
[1749196946045,11.49932537,147.24,147.23,0.04322284]
[1749196946239,6.7885,147.24,147.23,0.04322284]
[1749196946444,11.49931027,147.24,147.23,0.04322284]
[1749196946647,11.49948396,147.24,147.23,0.04322284]
[1749196946846,11.49952365,147.24,147.23,0.04322284]
[1749196947252,6.7885,147.24,147.23,0.04322284]
[1749196947453,11.49952365,147.24,147.23,0.04322284]
[1749196947751,11.49887135,147.24,147.23,0.04322284]
[1749196947953,6.7885,147.24,147.23,0.04322284]
[1749196948148,11.49887135,147.24,147.23,0.04322284]
[1749196948347,6.7885,147.24,147.23,0.04322284]
[1749196948549,11.49883468,147.24,147.23,0.04322284]
[1749196948745,6.7885,147.24,147.23,0.04322284]
[1749196949049,11.49883468,147.24,147.23,0.04322284]
[1749196949454,11.49886403,147.24,147.23,0.04322284]
[1749196950055,11.49887135,147.24,147.23,0.04322284]
[1749196950255,6.7885,147.24,147.23,0.04322284]
[1749196951051,11.50172646,147.24,147.23,0.04322284]
[1749196951351,11.50179509,147.24,147.23,0.04322284]
[1749196951550,6.7885,147.24,147.23,0.04322284]
[1749196951944,11.50197445,147.24,147.23,0.04322284]
[1749196952152,11.50196937,147.24,147.23,0.04322284]
[1749196952351,6.7885,147.24,147.23,0.04322284]
[1749196952753,11.50225071,147.24,147.23,0.04322284]
[1749196952954,11.50260967,147.24,147.23,0.04322284]
[1749196953357,11.50272813,147.24,147.23,0.04322284]
[1749196954254,11.50301994,147.24,147.23,0.04322284]
[1749196954453,11.50290246,147.24,147.23,0.04322284]
[1749196954659,11.50296613,147.24,147.23,0.04322284]
[1749196954859,11.5026617,147.24,147.23,0.04322284]
[1749196955159,14.60089852,147.24,147.23,0.04322284]
[1749196955353,14.59984539,147.24,147.23,0.04322284]
[1749196955555,14.599726,147.24,147.23,0.04322284]
[1749196955758,14.59948214,147.24,147.23,0.04322284]
[1749196955958,14.59948225,147.24,147.23,0.04322284]
[1749196956157,14.59947544,147.24,147.23,0.04322284]
[1749196956356,14.5995539,147.24,147.23,0.04322284]
[1749196956550,9.88744607,147.24,147.23,0.04322284]
[1749196957055,14.59988007,147.24,147.23,0.04322284]
[1749196957250,14.59553165,147.24,147.23,0.04322284]
[1749196957758,14.5950337,147.24,147.23,0.04322284]
[1749196957960,9.88744607,147.24,147.23,0.04322284]
[1749196958159,14.59509998,147.24,147.23,0.04322284]
[1749196958560,14.59541502,147.24,147.23,0.04322284]
[1749196958757,14.59536342,147.24,147.23,0.04322284]
[1749196958962,14.59536335,147.24,147.23,0.04322284]
[1749196959262,14.59571966,147.24,147.23,0.04322284]
[1749196959463,9.88744607,147.24,147.23,0.04322284]
[1749196959663,14.59587697,147.24,147.23,0.04322284]
[1749196960257,14.59560209,147.24,147.23,0.04322284]
[1749196960463,14.59554334,147.24,147.23,0.04322284]
[1749196960664,14.59558459,147.24,147.23,0.04322284]
[1749196960862,9.88744607,147.24,147.23,0.04322284]
[1749196961064,14.59577829,147.24,147.23,0.04322284]
[1749196961263,9.88744607,147.24,147.23,0.04322284]
[1749196961464,14.59670025,147.24,147.23,0.04322284]
[1749196961663,9.88744607,147.24,147.23,0.04322284]
[1749196961863,14.59660495,147.24,147.23,0.04322284]
[1749196962065,9.88744607,147.24,147.23,0.04322284]
[1749196962460,14.59652163,147.24,147.23,0.04322284]
[1749196963367,14.59677195,147.24,147.23,0.04322284]
[1749196963765,14.5964356,147.24,147.23,0.04322284]
[1749196964167,9.88744607,147.24,147.23,0.04322284]
[1749196964463,14.59590298,147.24,147.23,0.04322284]
[1749196964768,14.59557214,147.24,147.23,0.04322284]
[1749196964966,14.59507469,147.24,147.23,0.04322284]
[1749196965164,14.59560404,147.24,147.23,0.04322284]
[1749196965467,14.59664247,147.24,147.23,0.04322284]
[1749196965667,14.59675948,147.24,147.23,0.04322284]
[1749196965869,9.88744607,147.24,147.23,0.04322284]
[1749196966174,14.59669043,147.24,147.23,0.04322284]
[1749196966860,14.59714336,147.24,147.23,0.04322284]
[1749196967062,4.70969729,147.24,147.23,0.04322284]
[1749196967465,6.7882,147.25,147.23,6.83182284]
[1749196967666,4.71072728,147.24,147.23,6.83182284]
[1749196967863,6.7882,147.25,147.23,6.83182284]
[1749196968168,4.71051707,147.24,147.23,6.83182284]
[1749196968364,6.7882,147.25,147.23,6.83182284]
[1749196968766,4.71042734,147.24,147.23,6.83182284]
[1749196968967,4.71041939,147.24,147.23,6.83182284]
[1749196969169,4.71046822,147.24,147.23,6.83182284]
[1749196970071,3.14727158,147.26,147.23,6.83182284]
[1749196970271,4.7107173,147.25,147.23,6.83182284]
[1749196970471,4.71090936,147.24,147.23,6.83182284]
[1749196970663,4.7108554,147.24,147.23,6.83182284]
[1749196971070,4.71077084,147.24,147.23,6.83182284]
[1749196971671,4.71078678,147.24,147.23,6.83182284]
[1749196971968,6.7883,147.25,147.23,6.83182284]
[1749196972170,4.71077492,147.24,147.23,6.83182284]
[1749196972371,11.49927492,147.24,147.23,0.04322284]
[1749196972575,6.7885,147.24,147.23,0.04322284]
[1749196972874,11.4991375,147.24,147.23,0.04322284]
[1749196973670,11.4990407,147.24,147.23,0.04322284]
[1749196973878,3.14727158,147.26,147.23,0.04322284]
[1749196974176,4.7105407,147.25,147.23,0.04322284]
[1749196974468,3.14727158,147.26,147.23,0.04322284]
[1749196974673,4.71109081,147.25,147.23,0.04322284]
[1749196974875,3.14727158,147.26,147.23,0.04322284]
[1749196975075,7.81046242,147.25,147.23,0.04322284]
[1749196975277,3.09894607,147.25,147.23,0.04322284]
[1749196975477,4.7108192,147.24,147.23,0.04322284]
[1749196975781,11.49937705,147.24,147.23,0.04322284]
[1749196976077,6.7885,147.24,147.23,0.04322284]
[1749196976275,11.49937688,147.24,147.23,0.04322284]
[1749196977178,6.7885,147.24,147.23,0.04322284]
[1749196977674,11.49920799,147.24,147.23,0.04322284]
[1749196978079,14.59815406,147.24,147.23,0.04322284]
[1749196978980,11.49986223,147.24,147.23,0.04322284]
[1749196979174,14.5988083,147.24,147.23,0.04322284]
[1749196979380,14.59876223,147.24,147.23,0.04322284]
[1749196979577,9.88744607,147.24,147.23,0.04322284]
[1749196979770,14.598732,147.24,147.23,0.04322284]
[1749196980280,11.49978593,147.24,147.23,0.04322284]
[1749196980783,11.50093766,147.24,147.23,0.04322284]
[1749196980976,43.54724607,147.25,147.23,6.83222284]
[1749196981174,4.71273256,147.24,147.23,6.83222284]
[1749196981371,4.71273256,147.24,147.23,0.04322284]
[1749196981578,33.66,147.25,147.24,6.7885]
[1749196981778,41.12195115,147.25,147.24,6.7885]
[1749196981975,41.12195115,147.25,147.23,0.04322284]
[1749196982181,4.71337688,147.24,147.23,6.83192284]
[1749196982381,40.4483,147.25,147.23,6.83192284]
[1749196983577,33.66,147.25,147.24,6.7885]
[1749196983774,38.38350993,147.25,147.24,6.7885]
[1749196984080,38.38360822,147.25,147.24,6.7885]
[1749196984289,33.66,147.25,147.24,6.7885]
[1749196984483,38.38381866,147.25,147.24,6.7885]
[1749196984683,38.38389505,147.25,147.24,6.7885]
[1749196985183,0.04832551,147.26,147.25,6.7881]
[1749196985384,0.04832551,147.26,147.25,9.88704607]
[1749196986387,2.7550248,147.3,147.28,6.7863]
[1749196986685,7.48308516,147.29,147.28,9.88524607]
[1749196987183,4.72806045,147.29,147.28,9.88524607]
[1749196988081,6.83438495,147.3,147.28,9.88524607]
[1749196988477,4.71865148,147.29,147.28,9.88524607]
[1749196988786,4.71865148,147.29,147.27,0.05066056]
[1749196988787,11.50495148,147.29,147.27,9.93650663]
[1749196988985,3.14743102,147.3,147.27,3.14960663]
[1749196989185,0.04848495,147.3,147.27,0.05066056]
[1749196989385,6.83448495,147.3,147.28,6.7867]
[1749196989589,0.04848495,147.3,147.27,4.88805761]
[1749196990788,0.04848495,147.3,147.29,6.7862]
[1749196992189,0.04848495,147.3,147.28,6.7866]
[1749196992490,0.04848495,147.3,147.27,4.88805761]
[1749196993792,0.04848495,147.3,147.29,6.7862]
[1749196994293,4.79099812,147.3,147.29,6.7862]
[1749196994694,0.04848495,147.3,147.29,6.7862]
[1749197000193,0.04848495,147.3,147.27,4.88805761]
[1749197001198,6.7863,147.29,147.27,11.67485761]
[1749197001400,0.04848495,147.3,147.27,4.88805761]
[1749197001997,6.83448495,147.3,147.28,6.7866]
[1749197003299,0.04848495,147.3,147.29,6.7862]
[1749197003490,0.04848495,147.3,147.27,4.88805761]
[1749197004290,6.83458495,147.3,147.28,6.7866]
[1749197011101,0.04848495,147.3,147.29,6.7862]
[1749197012206,0.04848495,147.3,147.29,9.88160444]
[1749197013308,6.83428495,147.3,147.29,3.09540444]
[1749197018517,6.83428495,147.3,147.28,6.7864]
[1749197018817,6.83428495,147.3,147.29,3.09540444]
[1749197019116,0.04848495,147.3,147.29,9.88160444]
[1749197021017,33.66,147.34,147.31,6.7849]
[1749197021214,33.66,147.34,147.31,3.09540444]
[1749197021521,10.62886138,147.33,147.28,3.09536558]
[1749197021818,6.7856,147.31,147.28,3.09536558]
[1749197022121,6.83390517,147.31,147.28,3.14050919]
[1749197022515,6.83390517,147.31,147.29,6.786]
[1749197022716,6.83390517,147.31,147.29,9.88136558]
[1749197023120,0.04830517,147.31,147.3,6.7858]
[1749197023311,0.04830517,147.31,147.29,3.09536558]
[1749197023819,0.04830517,147.31,147.3,6.7858]
[1749197024020,2.82397576,147.31,147.3,6.7858]
[1749197024718,2.82545207,147.31,147.3,9.88116558]
[1749197024911,0.04830517,147.31,147.3,9.88116558]
[1749197025814,7.54538954,147.34,147.3,3.09536558]
[1749197026015,424.64,147.39,147.33,3.09536558]
[1749197026321,7.54583326,147.38,147.36,6.7829]
[1749197026514,7.5458326,147.37,147.36,9.87826558]
[1749197026715,4.76390099,147.37,147.35,3.09536558]
[1749197027014,7.54576382,147.36,147.35,9.92524232]
[1749197027320,7.54554234,147.36,147.35,9.92524232]
[1749197027814,0.04444273,147.37,147.36,6.783]
[1749197028014,7.62058187,147.37,147.36,6.783]
[1749197028219,7.62057777,147.37,147.36,6.783]
[1749197028418,7.62057777,147.37,147.36,9.87836558]
[1749197028419,2.85960044,147.37,147.36,9.87836558]
[1749197028619,7.62523755,147.37,147.36,9.87836558]
[1749197028815,4.87335051,147.37,147.36,9.87836558]
[1749197029011,7.6931793,147.37,147.36,9.87836558]
[1749197029416,0.04444273,147.37,147.36,9.87836558]
[1749197031311,0.04444273,147.37,147.36,11.61392789]
[1749197032113,33.62,147.42,147.36,11.61392789]
[1749197032114,33.62,147.42,147.4,6.781]
[1749197032317,7.64517723,147.41,147.4,6.781]
[1749197033113,6.7795,147.44,147.41,6.7805]
[1749197033114,0.05113826,147.42,147.41,6.7805]
[1749197033319,7.68090909,147.42,147.41,6.7805]
[1749197033521,7.68088204,147.42,147.41,6.7805]
[1749197033918,4.87486941,147.42,147.41,6.7805]
[1749197034114,7.68081564,147.42,147.41,6.7805]
[1749197034319,0.05113826,147.42,147.41,6.7805]
[1749197040719,33.6,147.48,147.44,6.7792]
[1749197040923,38.43092789,147.49,147.4,4.2471]
[1749197041124,4.83092789,147.47,147.42,6.78]
[1749197041521,6.779,147.45,147.42,6.78]
[1749197041721,6.83024871,147.45,147.42,6.82875809]
[1749197042032,6.83024871,147.45,147.43,6.7797]
[1749197042729,6.83024871,147.45,147.42,6.82875809]
[1749197043124,6.83024871,147.45,147.42,0.04875809]
[1749197044233,6.83024871,147.45,147.42,6.82875809]
[1749197045729,6.83024871,147.45,147.43,6.7797]
[1749197047132,0.05124871,147.45,147.43,6.7797]
[1749197049133,0.05124871,147.45,147.44,6.7793]
[1749197053333,0.05124871,147.45,147.44,9.86840108]
[1749197055835,0.05124871,147.45,147.44,6.7793]
[1749197057633,0.05124871,147.45,147.43,6.7796]
[1749197059438,0.05124871,147.45,147.44,6.7793]
[1749197069941,38.0414,147.52,147.43,4.82724283]
[1749197070143,2.83256181,147.51,147.46,4.82724283]
[1749197070341,6.7762,147.51,147.48,6.777]
[1749197070847,7.757943,147.5,147.48,6.82051325]
[1749197071046,4.91886955,147.49,147.48,6.82051325]
[1749197071346,6.82009975,147.51,147.48,0.04331325]
[1749197071548,4.9160357,147.5,147.48,0.04331325]
[1749197071849,6.82009975,147.51,147.48,0.04331325]
[1749197072045,4.91653572,147.5,147.48,0.04331325]
[1749197072244,6.82009975,147.51,147.48,0.04331325]
[1749197072751,0.04389975,147.51,147.48,0.04331325]
[1749197073750,0.04389975,147.51,147.5,6.7766]
[1749197074346,4.88697871,147.51,147.49,6.7769]
[1749197074543,4.84307896,147.5,147.49,6.7769]
[1749197074737,4.84308106,147.5,147.49,6.7769]
[1749197074937,4.84080268,147.5,147.49,6.7769]
[1749197075550,4.83706506,147.5,147.49,6.7769]
[1749197075749,0.04389975,147.51,147.49,6.7769]
[1749197076145,0.04389975,147.51,147.49,4.82724283]
[1749197076744,0.04389975,147.51,147.49,11.60404283]
[1749197078453,6.82009975,147.51,147.48,0.04331325]
[1749197078652,0.04389975,147.51,147.48,0.04331325]
[1749197079852,6.82029975,147.51,147.48,6.82041325]
[1749197080253,6.82029975,147.51,147.48,0.04331325]
[1749197080854,6.82029975,147.51,147.49,6.7768]
[1749197081357,0.04389975,147.51,147.49,11.60404283]
[1749197081753,0.04389975,147.51,147.5,6.7766]
[1749197083758,33.56,147.58,147.5,33.56]
[1749197083953,7.71522379,147.57,147.52,4.82724283]
[1749197084155,11.6476886,147.56,147.54,6.7745]
[1749197084453,7.71793558,147.55,147.54,6.7745]
[1749197084653,7.71793548,147.55,147.54,6.7745]
[1749197084852,14.49223466,147.55,147.53,6.8211272]
[1749197085062,0.04439079,147.56,147.53,6.8211272]
[1749197085249,2.8428614,147.55,147.53,6.8211272]
[1749197085454,6.81839079,147.56,147.53,6.8211272]
[1749197085650,2.84046616,147.55,147.54,6.7747]
[1749197085855,6.81839079,147.56,147.54,6.7747]
[1749197086056,6.81839079,147.56,147.53,0.0459272]
[1749197086255,6.7745,147.55,147.53,6.8208272]
[1749197086560,0.04439079,147.56,147.53,6.8208272]
[1749197086756,6.81849079,147.56,147.54,6.7747]
[1749197088261,6.81849079,147.56,147.53,6.8209272]
[1749197089261,6.81849079,147.56,147.54,6.7747]
[1749197090864,0.04439079,147.56,147.55,6.7743]
[1749197097165,0.04439079,147.56,147.55,11.60154283]
[1749197100264,7.74998297,147.59,147.58,6.7729]
[1749197100568,7.74903483,147.6,147.58,6.7729]
[1749197100764,6.7722,147.6,147.58,6.7729]
[1749197101367,6.81562163,147.6,147.58,6.81792365]
[1749197102166,6.7724,147.59,147.58,0.04502365]
[1749197103161,6.81562163,147.6,147.58,0.04502365]
[1749197103463,0.04342163,147.6,147.58,0.04502365]
[1749197104267,6.7724,147.59,147.58,0.04502365]
[1749197104465,9.62973906,147.59,147.58,0.04502365]
[1749197104671,11.69354564,147.59,147.58,0.04502365]
[1749197104871,11.69354761,147.59,147.58,0.04502365]